{"text_format":"1","workbook":"xlsx","n_sheets":3,"sheets":["Données_Inscriptions_Equipes","ListeClubsRaRT","Listes"],"not_rendered":{"charts":0,"images":0,"macros":1,"external_links":0,"defined_names":8,"comments":1,"pivot_tables":2},"unopened":[],"bounds":{"document_bytes":16777216,"sheet_cells":100000,"rows_first":2000,"rows_last":500,"rows_between":2000,"halvings":0,"cell_chars":16384,"cell_head_chars":4096},"cells_cut":0,"cells_raw":0,"read":"whole","date_system":"1900"}

{"sheet":"Données_Inscriptions_Equipes","index":0,"n_rows":89,"n_cols":11,"rows_kept":89,"cut":false,"hidden":false,"merged":[]}
[{"$f":"\"Formulaire d'inscription d'équipes saison \" &année_ref-1&\"-\"&année_ref","v":"Formulaire d'inscription d'équipes saison 2022-2023"},null,null,"v_1.0","Tour automne",{"$f":"Listes!B22","v":2022}]
["note: les colonne dont les titres sont en jaunes sont à remplir, les colonnes dont les titres sont en gris se calculent automatiquement",null,null,null,"Nom Fichier",{"$f":"pathname&\"\\\"&filename","v":"C:\\Users\\Gremar\\Documents\\InscriptionEquipes2016_2017_v_1.0"}]
["Club contacts","(nouveau: remplir une seule ligne avec le nom du responsable juniors)"]
["Nom du \nClub","N° Club","Noms\nresponsables","E_mails \nresponsables","N° Tel \nresponsables","Fonctions","Données valables saison 2022-2023","Remarques Club"]
[null,{"$f":"IF(TableauClub[[#This Row],[Nom du \nClub]]<>\"\",VLOOKUP(TableauClub[[#This Row],[Nom du \nClub]],TableauRaRt[],3,FALSE),\"\")","v":""},null,{"$f":"IF(TableauClub[[#This Row],[Noms\nresponsables]]<>\"\",VLOOKUP(TableauClub[[#This Row],[Noms\nresponsables]],TableauRaRt[[Nom, prénom du responsable]:[Fonction]],2,FALSE),\"\")","v":""},{"$f":"IF(TableauClub[[#This Row],[Noms\nresponsables]]<>\"\",VLOOKUP(TableauClub[[#This Row],[Noms\nresponsables]],TableauRaRt[[Nom, prénom du responsable]:[Fonction]],3,FALSE),\"\")","v":""},{"$f":"IF(TableauClub[[#This Row],[Noms\nresponsables]]<>\"\",VLOOKUP(TableauClub[[#This Row],[Noms\nresponsables]],TableauRaRt[[Nom, prénom du responsable]:[Fonction]],4,FALSE),\"\")","v":""}]
[null,{"$f":"IF(TableauClub[[#This Row],[Nom du \nClub]]<>\"\",VLOOKUP(TableauClub[[#This Row],[Nom du \nClub]],TableauRaRt[],3,FALSE),\"\")","v":""},null,{"$f":"IF(TableauClub[[#This Row],[Noms\nresponsables]]<>\"\",VLOOKUP(TableauClub[[#This Row],[Noms\nresponsables]],TableauRaRt[[Nom, prénom du responsable]:[Fonction]],2,FALSE),\"\")","v":""},{"$f":"IF(TableauClub[[#This Row],[Noms\nresponsables]]<>\"\",VLOOKUP(TableauClub[[#This Row],[Noms\nresponsables]],TableauRaRt[[Nom, prénom du responsable]:[Fonction]],3,FALSE),\"\")","v":""},{"$f":"IF(TableauClub[[#This Row],[Noms\nresponsables]]<>\"\",VLOOKUP(TableauClub[[#This Row],[Noms\nresponsables]],TableauRaRt[[Nom, prénom du responsable]:[Fonction]],4,FALSE),\"\")","v":""}]
[null,{"$f":"IF(TableauClub[[#This Row],[Nom du \nClub]]<>\"\",VLOOKUP(TableauClub[[#This Row],[Nom du \nClub]],TableauRaRt[],3,FALSE),\"\")","v":""},null,{"$f":"IF(TableauClub[[#This Row],[Noms\nresponsables]]<>\"\",VLOOKUP(TableauClub[[#This Row],[Noms\nresponsables]],TableauRaRt[[Nom, prénom du responsable]:[Fonction]],2,FALSE),\"\")","v":""},{"$f":"IF(TableauClub[[#This Row],[Noms\nresponsables]]<>\"\",VLOOKUP(TableauClub[[#This Row],[Noms\nresponsables]],TableauRaRt[[Nom, prénom du responsable]:[Fonction]],3,FALSE),\"\")","v":""},{"$f":"IF(TableauClub[[#This Row],[Noms\nresponsables]]<>\"\",VLOOKUP(TableauClub[[#This Row],[Noms\nresponsables]],TableauRaRt[[Nom, prénom du responsable]:[Fonction]],4,FALSE),\"\")","v":""}]
[null,{"$f":"IF(TableauClub[[#This Row],[Nom du \nClub]]<>\"\",VLOOKUP(TableauClub[[#This Row],[Nom du \nClub]],TableauRaRt[],3,FALSE),\"\")","v":""},null,{"$f":"IF(TableauClub[[#This Row],[Noms\nresponsables]]<>\"\",VLOOKUP(TableauClub[[#This Row],[Noms\nresponsables]],TableauRaRt[[Nom, prénom du responsable]:[Fonction]],2,FALSE),\"\")","v":""},{"$f":"IF(TableauClub[[#This Row],[Noms\nresponsables]]<>\"\",VLOOKUP(TableauClub[[#This Row],[Noms\nresponsables]],TableauRaRt[[Nom, prénom du responsable]:[Fonction]],3,FALSE),\"\")","v":""},{"$f":"IF(TableauClub[[#This Row],[Noms\nresponsables]]<>\"\",VLOOKUP(TableauClub[[#This Row],[Noms\nresponsables]],TableauRaRt[[Nom, prénom du responsable]:[Fonction]],4,FALSE),\"\")","v":""}]
[]
["Corrections Club","(Indiquer les changements et corrections)"]
["Responsable\nactuel","-->","Nom \nmodifié","E-mail\nmodifié","N°Tel\nmodifié","Fonction\nmodifiée"]
[{"$f":"IF(G5=\"non\",C5,\"\")","v":""},{"$f":"IF(Modifications_Club[[#This Row],[Responsable\nactuel]]=\"\",\"\",Modifications_Club[[#Headers],[-->]])","v":""}]
["",{"$f":"IF(Modifications_Club[[#This Row],[Responsable\nactuel]]=\"\",\"\",Modifications_Club[[#Headers],[-->]])","v":""}]
["",{"$f":"IF(Modifications_Club[[#This Row],[Responsable\nactuel]]=\"\",\"\",Modifications_Club[[#Headers],[-->]])","v":""}]
["",{"$f":"IF(Modifications_Club[[#This Row],[Responsable\nactuel]]=\"\",\"\",Modifications_Club[[#Headers],[-->]])","v":""}]
[]
["Groupement","(Merci de remplir une ligne pour chaque club du groupement)",null,null,null,null,"Corrections groupement"]
["Nom des clubs \npartenaires","N° Club","Nom groupement","Inscription\nequipes","Données valables saison \n2022-2023","-->","Nouveau nom \ngroupement","Remarques Groupement"]
[{"$f":"IF(clubRef<>\"\",clubRef,\"\")","v":""},{"$f":"IF(TableauGroupement[[#This Row],[Nom des clubs \npartenaires]]<>\"\",VLOOKUP(TableauGroupement[[#This Row],[Nom des clubs \npartenaires]],TableauRaRt[],3,FALSE),\"\")","v":""},{"$f":"IF(TableauGroupement[[#This Row],[N° Club]]<>\"\",VLOOKUP(TableauGroupement[[#This Row],[N° Club]],TableauRaRt[[No Club]:[Groupement]],2,FALSE),\"\")","v":""},{"$f":"IF(TableauGroupement[[#This Row],[N° Club]]=NbClubRef,\"x\",\"\")","v":"x"},null,{"$f":"IF(TableauGroupement[[#This Row],[Données valables saison \n2022-2023]]=\"non\",TableauGroupement[[#Headers],[-->]],\"\")","v":""}]
[null,{"$f":"IF(TableauGroupement[[#This Row],[Nom des clubs \npartenaires]]<>\"\",VLOOKUP(TableauGroupement[[#This Row],[Nom des clubs \npartenaires]],TableauRaRt[],3,FALSE),\"\")","v":""},{"$f":"IF(TableauGroupement[[#This Row],[N° Club]]<>\"\",VLOOKUP(TableauGroupement[[#This Row],[N° Club]],TableauRaRt[[No Club]:[Groupement]],2,FALSE),\"\")","v":""},{"$f":"IF(TableauGroupement[[#This Row],[N° Club]]=NbClubRef,\"x\",\"\")","v":"x"},null,{"$f":"IF(TableauGroupement[[#This Row],[Données valables saison \n2022-2023]]=\"non\",TableauGroupement[[#Headers],[-->]],\"\")","v":""}]
[null,{"$f":"IF(TableauGroupement[[#This Row],[Nom des clubs \npartenaires]]<>\"\",VLOOKUP(TableauGroupement[[#This Row],[Nom des clubs \npartenaires]],TableauRaRt[],3,FALSE),\"\")","v":""},{"$f":"IF(TableauGroupement[[#This Row],[N° Club]]<>\"\",VLOOKUP(TableauGroupement[[#This Row],[N° Club]],TableauRaRt[[No Club]:[Groupement]],2,FALSE),\"\")","v":""},{"$f":"IF(TableauGroupement[[#This Row],[N° Club]]=NbClubRef,\"x\",\"\")","v":"x"},null,{"$f":"IF(TableauGroupement[[#This Row],[Données valables saison \n2022-2023]]=\"non\",TableauGroupement[[#Headers],[-->]],\"\")","v":""}]
[null,{"$f":"IF(TableauGroupement[[#This Row],[Nom des clubs \npartenaires]]<>\"\",VLOOKUP(TableauGroupement[[#This Row],[Nom des clubs \npartenaires]],TableauRaRt[],3,FALSE),\"\")","v":""},{"$f":"IF(TableauGroupement[[#This Row],[N° Club]]<>\"\",VLOOKUP(TableauGroupement[[#This Row],[N° Club]],TableauRaRt[[No Club]:[Groupement]],2,FALSE),\"\")","v":""},{"$f":"IF(TableauGroupement[[#This Row],[N° Club]]=NbClubRef,\"x\",\"\")","v":"x"},null,{"$f":"IF(TableauGroupement[[#This Row],[Données valables saison \n2022-2023]]=\"non\",TableauGroupement[[#Headers],[-->]],\"\")","v":""}]
[null,{"$f":"IF(TableauGroupement[[#This Row],[Nom des clubs \npartenaires]]<>\"\",VLOOKUP(TableauGroupement[[#This Row],[Nom des clubs \npartenaires]],TableauRaRt[],3,FALSE),\"\")","v":""},{"$f":"IF(TableauGroupement[[#This Row],[N° Club]]<>\"\",VLOOKUP(TableauGroupement[[#This Row],[N° Club]],TableauRaRt[[No Club]:[Groupement]],2,FALSE),\"\")","v":""},{"$f":"IF(TableauGroupement[[#This Row],[N° Club]]=NbClubRef,\"x\",\"\")","v":"x"},null,{"$f":"IF(TableauGroupement[[#This Row],[Données valables saison \n2022-2023]]=\"non\",TableauGroupement[[#Headers],[-->]],\"\")","v":""}]
[]
["Equipes","(remplir une ligne par équipe en précisant si elle fait partie du groupement ou non, son degré, son surnom, et les dates d'indisponibilité, chaque club d'un groupement doit inscrire ses équipes)"]
["Equipe n°","Catégorie","Années naissance","Equipe fait partie du \nGroupement","Nom Equipe","Surnom équipe","Degré souhaité","Remarques Equipe"]
[{"$f":"clubRef&\" \"&ROW(TableauEquipes[[#This Row],[Catégorie]])-ROW(TableauEquipes[[#Headers],[Equipe n°]])","v":" 1"},null,{"$f":"IF(TableauEquipes[[#This Row],[Catégorie]]<>\"\",VLOOKUP(TableauEquipes[[#This Row],[Catégorie]],Catégories[#All],2,FALSE),\"\")","v":""},null,{"$f":"IF(TableauEquipes[[#This Row],[Equipe fait partie du \nGroupement]]=\"oui\",IF(VLOOKUP(clubRef,TableauGroupement[#All],5,FALSE)=\"non\",VLOOKUP(clubRef,TableauGroupement[#All],7,FALSE),VLOOKUP(clubRef,TableauGroupement[#All],3,FALSE)),IF(TableauEquipes[[#This Row],[Equipe fait partie du \nGroupement]]<>\"\",clubRef,\"\"))","v":""}]
[{"$f":"clubRef&\" \"&ROW(TableauEquipes[[#This Row],[Catégorie]])-ROW(TableauEquipes[[#Headers],[Equipe n°]])","v":" 2"},null,{"$f":"IF(TableauEquipes[[#This Row],[Catégorie]]<>\"\",VLOOKUP(TableauEquipes[[#This Row],[Catégorie]],Catégories[#All],2,FALSE),\"\")","v":""},null,{"$f":"IF(TableauEquipes[[#This Row],[Equipe fait partie du \nGroupement]]=\"oui\",IF(VLOOKUP(clubRef,TableauGroupement[#All],5,FALSE)=\"non\",VLOOKUP(clubRef,TableauGroupement[#All],7,FALSE),VLOOKUP(clubRef,TableauGroupement[#All],3,FALSE)),IF(TableauEquipes[[#This Row],[Equipe fait partie du \nGroupement]]<>\"\",clubRef,\"\"))","v":""}]
[{"$f":"clubRef&\" \"&ROW(TableauEquipes[[#This Row],[Catégorie]])-ROW(TableauEquipes[[#Headers],[Equipe n°]])","v":" 3"},null,{"$f":"IF(TableauEquipes[[#This Row],[Catégorie]]<>\"\",VLOOKUP(TableauEquipes[[#This Row],[Catégorie]],Catégories[#All],2,FALSE),\"\")","v":""},null,{"$f":"IF(TableauEquipes[[#This Row],[Equipe fait partie du \nGroupement]]=\"oui\",IF(VLOOKUP(clubRef,TableauGroupement[#All],5,FALSE)=\"non\",VLOOKUP(clubRef,TableauGroupement[#All],7,FALSE),VLOOKUP(clubRef,TableauGroupement[#All],3,FALSE)),IF(TableauEquipes[[#This Row],[Equipe fait partie du \nGroupement]]<>\"\",clubRef,\"\"))","v":""}]
[{"$f":"clubRef&\" \"&ROW(TableauEquipes[[#This Row],[Catégorie]])-ROW(TableauEquipes[[#Headers],[Equipe n°]])","v":" 4"},null,{"$f":"IF(TableauEquipes[[#This Row],[Catégorie]]<>\"\",VLOOKUP(TableauEquipes[[#This Row],[Catégorie]],Catégories[#All],2,FALSE),\"\")","v":""},null,{"$f":"IF(TableauEquipes[[#This Row],[Equipe fait partie du \nGroupement]]=\"oui\",IF(VLOOKUP(clubRef,TableauGroupement[#All],5,FALSE)=\"non\",VLOOKUP(clubRef,TableauGroupement[#All],7,FALSE),VLOOKUP(clubRef,TableauGroupement[#All],3,FALSE)),IF(TableauEquipes[[#This Row],[Equipe fait partie du \nGroupement]]<>\"\",clubRef,\"\"))","v":""}]
[{"$f":"clubRef&\" \"&ROW(TableauEquipes[[#This Row],[Catégorie]])-ROW(TableauEquipes[[#Headers],[Equipe n°]])","v":" 5"},null,{"$f":"IF(TableauEquipes[[#This Row],[Catégorie]]<>\"\",VLOOKUP(TableauEquipes[[#This Row],[Catégorie]],Catégories[#All],2,FALSE),\"\")","v":""},null,{"$f":"IF(TableauEquipes[[#This Row],[Equipe fait partie du \nGroupement]]=\"oui\",IF(VLOOKUP(clubRef,TableauGroupement[#All],5,FALSE)=\"non\",VLOOKUP(clubRef,TableauGroupement[#All],7,FALSE),VLOOKUP(clubRef,TableauGroupement[#All],3,FALSE)),IF(TableauEquipes[[#This Row],[Equipe fait partie du \nGroupement]]<>\"\",clubRef,\"\"))","v":""}]
[{"$f":"clubRef&\" \"&ROW(TableauEquipes[[#This Row],[Catégorie]])-ROW(TableauEquipes[[#Headers],[Equipe n°]])","v":" 6"},null,{"$f":"IF(TableauEquipes[[#This Row],[Catégorie]]<>\"\",VLOOKUP(TableauEquipes[[#This Row],[Catégorie]],Catégories[#All],2,FALSE),\"\")","v":""},null,{"$f":"IF(TableauEquipes[[#This Row],[Equipe fait partie du \nGroupement]]=\"oui\",IF(VLOOKUP(clubRef,TableauGroupement[#All],5,FALSE)=\"non\",VLOOKUP(clubRef,TableauGroupement[#All],7,FALSE),VLOOKUP(clubRef,TableauGroupement[#All],3,FALSE)),IF(TableauEquipes[[#This Row],[Equipe fait partie du \nGroupement]]<>\"\",clubRef,\"\"))","v":""}]
[{"$f":"clubRef&\" \"&ROW(TableauEquipes[[#This Row],[Catégorie]])-ROW(TableauEquipes[[#Headers],[Equipe n°]])","v":" 7"},null,{"$f":"IF(TableauEquipes[[#This Row],[Catégorie]]<>\"\",VLOOKUP(TableauEquipes[[#This Row],[Catégorie]],Catégories[#All],2,FALSE),\"\")","v":""},null,{"$f":"IF(TableauEquipes[[#This Row],[Equipe fait partie du \nGroupement]]=\"oui\",IF(VLOOKUP(clubRef,TableauGroupement[#All],5,FALSE)=\"non\",VLOOKUP(clubRef,TableauGroupement[#All],7,FALSE),VLOOKUP(clubRef,TableauGroupement[#All],3,FALSE)),IF(TableauEquipes[[#This Row],[Equipe fait partie du \nGroupement]]<>\"\",clubRef,\"\"))","v":""}]
[{"$f":"clubRef&\" \"&ROW(TableauEquipes[[#This Row],[Catégorie]])-ROW(TableauEquipes[[#Headers],[Equipe n°]])","v":" 8"},null,{"$f":"IF(TableauEquipes[[#This Row],[Catégorie]]<>\"\",VLOOKUP(TableauEquipes[[#This Row],[Catégorie]],Catégories[#All],2,FALSE),\"\")","v":""},null,{"$f":"IF(TableauEquipes[[#This Row],[Equipe fait partie du \nGroupement]]=\"oui\",IF(VLOOKUP(clubRef,TableauGroupement[#All],5,FALSE)=\"non\",VLOOKUP(clubRef,TableauGroupement[#All],7,FALSE),VLOOKUP(clubRef,TableauGroupement[#All],3,FALSE)),IF(TableauEquipes[[#This Row],[Equipe fait partie du \nGroupement]]<>\"\",clubRef,\"\"))","v":""}]
[{"$f":"clubRef&\" \"&ROW(TableauEquipes[[#This Row],[Catégorie]])-ROW(TableauEquipes[[#Headers],[Equipe n°]])","v":" 9"},null,{"$f":"IF(TableauEquipes[[#This Row],[Catégorie]]<>\"\",VLOOKUP(TableauEquipes[[#This Row],[Catégorie]],Catégories[#All],2,FALSE),\"\")","v":""},null,{"$f":"IF(TableauEquipes[[#This Row],[Equipe fait partie du \nGroupement]]=\"oui\",IF(VLOOKUP(clubRef,TableauGroupement[#All],5,FALSE)=\"non\",VLOOKUP(clubRef,TableauGroupement[#All],7,FALSE),VLOOKUP(clubRef,TableauGroupement[#All],3,FALSE)),IF(TableauEquipes[[#This Row],[Equipe fait partie du \nGroupement]]<>\"\",clubRef,\"\"))","v":""}]
[{"$f":"clubRef&\" \"&ROW(TableauEquipes[[#This Row],[Catégorie]])-ROW(TableauEquipes[[#Headers],[Equipe n°]])","v":" 10"},null,{"$f":"IF(TableauEquipes[[#This Row],[Catégorie]]<>\"\",VLOOKUP(TableauEquipes[[#This Row],[Catégorie]],Catégories[#All],2,FALSE),\"\")","v":""},null,{"$f":"IF(TableauEquipes[[#This Row],[Equipe fait partie du \nGroupement]]=\"oui\",IF(VLOOKUP(clubRef,TableauGroupement[#All],5,FALSE)=\"non\",VLOOKUP(clubRef,TableauGroupement[#All],7,FALSE),VLOOKUP(clubRef,TableauGroupement[#All],3,FALSE)),IF(TableauEquipes[[#This Row],[Equipe fait partie du \nGroupement]]<>\"\",clubRef,\"\"))","v":""}]
[{"$f":"clubRef&\" \"&ROW(TableauEquipes[[#This Row],[Catégorie]])-ROW(TableauEquipes[[#Headers],[Equipe n°]])","v":" 11"},null,{"$f":"IF(TableauEquipes[[#This Row],[Catégorie]]<>\"\",VLOOKUP(TableauEquipes[[#This Row],[Catégorie]],Catégories[#All],2,FALSE),\"\")","v":""},null,{"$f":"IF(TableauEquipes[[#This Row],[Equipe fait partie du \nGroupement]]=\"oui\",IF(VLOOKUP(clubRef,TableauGroupement[#All],5,FALSE)=\"non\",VLOOKUP(clubRef,TableauGroupement[#All],7,FALSE),VLOOKUP(clubRef,TableauGroupement[#All],3,FALSE)),IF(TableauEquipes[[#This Row],[Equipe fait partie du \nGroupement]]<>\"\",clubRef,\"\"))","v":""}]
[{"$f":"clubRef&\" \"&ROW(TableauEquipes[[#This Row],[Catégorie]])-ROW(TableauEquipes[[#Headers],[Equipe n°]])","v":" 12"},null,{"$f":"IF(TableauEquipes[[#This Row],[Catégorie]]<>\"\",VLOOKUP(TableauEquipes[[#This Row],[Catégorie]],Catégories[#All],2,FALSE),\"\")","v":""},null,{"$f":"IF(TableauEquipes[[#This Row],[Equipe fait partie du \nGroupement]]=\"oui\",IF(VLOOKUP(clubRef,TableauGroupement[#All],5,FALSE)=\"non\",VLOOKUP(clubRef,TableauGroupement[#All],7,FALSE),VLOOKUP(clubRef,TableauGroupement[#All],3,FALSE)),IF(TableauEquipes[[#This Row],[Equipe fait partie du \nGroupement]]<>\"\",clubRef,\"\"))","v":""}]
[{"$f":"clubRef&\" \"&ROW(TableauEquipes[[#This Row],[Catégorie]])-ROW(TableauEquipes[[#Headers],[Equipe n°]])","v":" 13"},null,{"$f":"IF(TableauEquipes[[#This Row],[Catégorie]]<>\"\",VLOOKUP(TableauEquipes[[#This Row],[Catégorie]],Catégories[#All],2,FALSE),\"\")","v":""},null,{"$f":"IF(TableauEquipes[[#This Row],[Equipe fait partie du \nGroupement]]=\"oui\",IF(VLOOKUP(clubRef,TableauGroupement[#All],5,FALSE)=\"non\",VLOOKUP(clubRef,TableauGroupement[#All],7,FALSE),VLOOKUP(clubRef,TableauGroupement[#All],3,FALSE)),IF(TableauEquipes[[#This Row],[Equipe fait partie du \nGroupement]]<>\"\",clubRef,\"\"))","v":""}]
[{"$f":"clubRef&\" \"&ROW(TableauEquipes[[#This Row],[Catégorie]])-ROW(TableauEquipes[[#Headers],[Equipe n°]])","v":" 14"},null,{"$f":"IF(TableauEquipes[[#This Row],[Catégorie]]<>\"\",VLOOKUP(TableauEquipes[[#This Row],[Catégorie]],Catégories[#All],2,FALSE),\"\")","v":""},null,{"$f":"IF(TableauEquipes[[#This Row],[Equipe fait partie du \nGroupement]]=\"oui\",IF(VLOOKUP(clubRef,TableauGroupement[#All],5,FALSE)=\"non\",VLOOKUP(clubRef,TableauGroupement[#All],7,FALSE),VLOOKUP(clubRef,TableauGroupement[#All],3,FALSE)),IF(TableauEquipes[[#This Row],[Equipe fait partie du \nGroupement]]<>\"\",clubRef,\"\"))","v":""}]
[{"$f":"clubRef&\" \"&ROW(TableauEquipes[[#This Row],[Catégorie]])-ROW(TableauEquipes[[#Headers],[Equipe n°]])","v":" 15"},null,{"$f":"IF(TableauEquipes[[#This Row],[Catégorie]]<>\"\",VLOOKUP(TableauEquipes[[#This Row],[Catégorie]],Catégories[#All],2,FALSE),\"\")","v":""},null,{"$f":"IF(TableauEquipes[[#This Row],[Equipe fait partie du \nGroupement]]=\"oui\",IF(VLOOKUP(clubRef,TableauGroupement[#All],5,FALSE)=\"non\",VLOOKUP(clubRef,TableauGroupement[#All],7,FALSE),VLOOKUP(clubRef,TableauGroupement[#All],3,FALSE)),IF(TableauEquipes[[#This Row],[Equipe fait partie du \nGroupement]]<>\"\",clubRef,\"\"))","v":""}]
[{"$f":"clubRef&\" \"&ROW(TableauEquipes[[#This Row],[Catégorie]])-ROW(TableauEquipes[[#Headers],[Equipe n°]])","v":" 16"},null,{"$f":"IF(TableauEquipes[[#This Row],[Catégorie]]<>\"\",VLOOKUP(TableauEquipes[[#This Row],[Catégorie]],Catégories[#All],2,FALSE),\"\")","v":""},null,{"$f":"IF(TableauEquipes[[#This Row],[Equipe fait partie du \nGroupement]]=\"oui\",IF(VLOOKUP(clubRef,TableauGroupement[#All],5,FALSE)=\"non\",VLOOKUP(clubRef,TableauGroupement[#All],7,FALSE),VLOOKUP(clubRef,TableauGroupement[#All],3,FALSE)),IF(TableauEquipes[[#This Row],[Equipe fait partie du \nGroupement]]<>\"\",clubRef,\"\"))","v":""}]
[{"$f":"clubRef&\" \"&ROW(TableauEquipes[[#This Row],[Catégorie]])-ROW(TableauEquipes[[#Headers],[Equipe n°]])","v":" 17"},null,{"$f":"IF(TableauEquipes[[#This Row],[Catégorie]]<>\"\",VLOOKUP(TableauEquipes[[#This Row],[Catégorie]],Catégories[#All],2,FALSE),\"\")","v":""},null,{"$f":"IF(TableauEquipes[[#This Row],[Equipe fait partie du \nGroupement]]=\"oui\",IF(VLOOKUP(clubRef,TableauGroupement[#All],5,FALSE)=\"non\",VLOOKUP(clubRef,TableauGroupement[#All],7,FALSE),VLOOKUP(clubRef,TableauGroupement[#All],3,FALSE)),IF(TableauEquipes[[#This Row],[Equipe fait partie du \nGroupement]]<>\"\",clubRef,\"\"))","v":""}]
[{"$f":"clubRef&\" \"&ROW(TableauEquipes[[#This Row],[Catégorie]])-ROW(TableauEquipes[[#Headers],[Equipe n°]])","v":" 18"},null,{"$f":"IF(TableauEquipes[[#This Row],[Catégorie]]<>\"\",VLOOKUP(TableauEquipes[[#This Row],[Catégorie]],Catégories[#All],2,FALSE),\"\")","v":""},null,{"$f":"IF(TableauEquipes[[#This Row],[Equipe fait partie du \nGroupement]]=\"oui\",IF(VLOOKUP(clubRef,TableauGroupement[#All],5,FALSE)=\"non\",VLOOKUP(clubRef,TableauGroupement[#All],7,FALSE),VLOOKUP(clubRef,TableauGroupement[#All],3,FALSE)),IF(TableauEquipes[[#This Row],[Equipe fait partie du \nGroupement]]<>\"\",clubRef,\"\"))","v":""}]
[{"$f":"clubRef&\" \"&ROW(TableauEquipes[[#This Row],[Catégorie]])-ROW(TableauEquipes[[#Headers],[Equipe n°]])","v":" 19"},null,{"$f":"IF(TableauEquipes[[#This Row],[Catégorie]]<>\"\",VLOOKUP(TableauEquipes[[#This Row],[Catégorie]],Catégories[#All],2,FALSE),\"\")","v":""},null,{"$f":"IF(TableauEquipes[[#This Row],[Equipe fait partie du \nGroupement]]=\"oui\",IF(VLOOKUP(clubRef,TableauGroupement[#All],5,FALSE)=\"non\",VLOOKUP(clubRef,TableauGroupement[#All],7,FALSE),VLOOKUP(clubRef,TableauGroupement[#All],3,FALSE)),IF(TableauEquipes[[#This Row],[Equipe fait partie du \nGroupement]]<>\"\",clubRef,\"\"))","v":""}]
[{"$f":"clubRef&\" \"&ROW(TableauEquipes[[#This Row],[Catégorie]])-ROW(TableauEquipes[[#Headers],[Equipe n°]])","v":" 20"},null,{"$f":"IF(TableauEquipes[[#This Row],[Catégorie]]<>\"\",VLOOKUP(TableauEquipes[[#This Row],[Catégorie]],Catégories[#All],2,FALSE),\"\")","v":""},null,{"$f":"IF(TableauEquipes[[#This Row],[Equipe fait partie du \nGroupement]]=\"oui\",IF(VLOOKUP(clubRef,TableauGroupement[#All],5,FALSE)=\"non\",VLOOKUP(clubRef,TableauGroupement[#All],7,FALSE),VLOOKUP(clubRef,TableauGroupement[#All],3,FALSE)),IF(TableauEquipes[[#This Row],[Equipe fait partie du \nGroupement]]<>\"\",clubRef,\"\"))","v":""}]
[]
["Entraineurs","(remplir une ligne par entraineur en précisant l'équipe, le nom & prénom, la fonction, le n° tel, l'e-mail, …, tous les champs sont importants)"]
["Equipe n°","Catégorie\nEquipe","Nom\nEquipe","Nom Prénom\nEntraineur","Fontion\nEntraineur","N° Téléphone\nEntraineur","E-mail\nEntraineur","Remarques Entraineur","date de naissance","diplôme","date dernier cours"]
[null,{"$f":"IF(TableauEntraineurs[[#This Row],[Equipe n°]]<>\"\",VLOOKUP(TableauEntraineurs[[#This Row],[Equipe n°]],TableauEquipes[[Equipe n°]:[Catégorie]],2,FALSE),\"\")","v":""},{"$f":"IF(TableauEntraineurs[[#This Row],[Catégorie\nEquipe]]<>\"\",VLOOKUP(TableauEntraineurs[[#This Row],[Equipe n°]],TableauEquipes[#All],5,FALSE)&\" \"&VLOOKUP(TableauEntraineurs[[#This Row],[Equipe n°]],TableauEquipes[#All],6,FALSE),\"\")","v":""}]
[null,{"$f":"IF(TableauEntraineurs[[#This Row],[Equipe n°]]<>\"\",VLOOKUP(TableauEntraineurs[[#This Row],[Equipe n°]],TableauEquipes[[Equipe n°]:[Catégorie]],2,FALSE),\"\")","v":""},{"$f":"IF(TableauEntraineurs[[#This Row],[Catégorie\nEquipe]]<>\"\",VLOOKUP(TableauEntraineurs[[#This Row],[Equipe n°]],TableauEquipes[#All],5,FALSE)&\" \"&VLOOKUP(TableauEntraineurs[[#This Row],[Equipe n°]],TableauEquipes[#All],6,FALSE),\"\")","v":""}]
[null,{"$f":"IF(TableauEntraineurs[[#This Row],[Equipe n°]]<>\"\",VLOOKUP(TableauEntraineurs[[#This Row],[Equipe n°]],TableauEquipes[[Equipe n°]:[Catégorie]],2,FALSE),\"\")","v":""},{"$f":"IF(TableauEntraineurs[[#This Row],[Catégorie\nEquipe]]<>\"\",VLOOKUP(TableauEntraineurs[[#This Row],[Equipe n°]],TableauEquipes[#All],5,FALSE)&\" \"&VLOOKUP(TableauEntraineurs[[#This Row],[Equipe n°]],TableauEquipes[#All],6,FALSE),\"\")","v":""}]
[null,{"$f":"IF(TableauEntraineurs[[#This Row],[Equipe n°]]<>\"\",VLOOKUP(TableauEntraineurs[[#This Row],[Equipe n°]],TableauEquipes[[Equipe n°]:[Catégorie]],2,FALSE),\"\")","v":""},{"$f":"IF(TableauEntraineurs[[#This Row],[Catégorie\nEquipe]]<>\"\",VLOOKUP(TableauEntraineurs[[#This Row],[Equipe n°]],TableauEquipes[#All],5,FALSE)&\" \"&VLOOKUP(TableauEntraineurs[[#This Row],[Equipe n°]],TableauEquipes[#All],6,FALSE),\"\")","v":""}]
[null,{"$f":"IF(TableauEntraineurs[[#This Row],[Equipe n°]]<>\"\",VLOOKUP(TableauEntraineurs[[#This Row],[Equipe n°]],TableauEquipes[[Equipe n°]:[Catégorie]],2,FALSE),\"\")","v":""},{"$f":"IF(TableauEntraineurs[[#This Row],[Catégorie\nEquipe]]<>\"\",VLOOKUP(TableauEntraineurs[[#This Row],[Equipe n°]],TableauEquipes[#All],5,FALSE)&\" \"&VLOOKUP(TableauEntraineurs[[#This Row],[Equipe n°]],TableauEquipes[#All],6,FALSE),\"\")","v":""}]
[null,{"$f":"IF(TableauEntraineurs[[#This Row],[Equipe n°]]<>\"\",VLOOKUP(TableauEntraineurs[[#This Row],[Equipe n°]],TableauEquipes[[Equipe n°]:[Catégorie]],2,FALSE),\"\")","v":""},{"$f":"IF(TableauEntraineurs[[#This Row],[Catégorie\nEquipe]]<>\"\",VLOOKUP(TableauEntraineurs[[#This Row],[Equipe n°]],TableauEquipes[#All],5,FALSE)&\" \"&VLOOKUP(TableauEntraineurs[[#This Row],[Equipe n°]],TableauEquipes[#All],6,FALSE),\"\")","v":""}]
[null,{"$f":"IF(TableauEntraineurs[[#This Row],[Equipe n°]]<>\"\",VLOOKUP(TableauEntraineurs[[#This Row],[Equipe n°]],TableauEquipes[[Equipe n°]:[Catégorie]],2,FALSE),\"\")","v":""},{"$f":"IF(TableauEntraineurs[[#This Row],[Catégorie\nEquipe]]<>\"\",VLOOKUP(TableauEntraineurs[[#This Row],[Equipe n°]],TableauEquipes[#All],5,FALSE)&\" \"&VLOOKUP(TableauEntraineurs[[#This Row],[Equipe n°]],TableauEquipes[#All],6,FALSE),\"\")","v":""}]
[null,{"$f":"IF(TableauEntraineurs[[#This Row],[Equipe n°]]<>\"\",VLOOKUP(TableauEntraineurs[[#This Row],[Equipe n°]],TableauEquipes[[Equipe n°]:[Catégorie]],2,FALSE),\"\")","v":""},{"$f":"IF(TableauEntraineurs[[#This Row],[Catégorie\nEquipe]]<>\"\",VLOOKUP(TableauEntraineurs[[#This Row],[Equipe n°]],TableauEquipes[#All],5,FALSE)&\" \"&VLOOKUP(TableauEntraineurs[[#This Row],[Equipe n°]],TableauEquipes[#All],6,FALSE),\"\")","v":""}]
[null,{"$f":"IF(TableauEntraineurs[[#This Row],[Equipe n°]]<>\"\",VLOOKUP(TableauEntraineurs[[#This Row],[Equipe n°]],TableauEquipes[[Equipe n°]:[Catégorie]],2,FALSE),\"\")","v":""},{"$f":"IF(TableauEntraineurs[[#This Row],[Catégorie\nEquipe]]<>\"\",VLOOKUP(TableauEntraineurs[[#This Row],[Equipe n°]],TableauEquipes[#All],5,FALSE)&\" \"&VLOOKUP(TableauEntraineurs[[#This Row],[Equipe n°]],TableauEquipes[#All],6,FALSE),\"\")","v":""}]
[null,{"$f":"IF(TableauEntraineurs[[#This Row],[Equipe n°]]<>\"\",VLOOKUP(TableauEntraineurs[[#This Row],[Equipe n°]],TableauEquipes[[Equipe n°]:[Catégorie]],2,FALSE),\"\")","v":""},{"$f":"IF(TableauEntraineurs[[#This Row],[Catégorie\nEquipe]]<>\"\",VLOOKUP(TableauEntraineurs[[#This Row],[Equipe n°]],TableauEquipes[#All],5,FALSE)&\" \"&VLOOKUP(TableauEntraineurs[[#This Row],[Equipe n°]],TableauEquipes[#All],6,FALSE),\"\")","v":""}]
[null,{"$f":"IF(TableauEntraineurs[[#This Row],[Equipe n°]]<>\"\",VLOOKUP(TableauEntraineurs[[#This Row],[Equipe n°]],TableauEquipes[[Equipe n°]:[Catégorie]],2,FALSE),\"\")","v":""},{"$f":"IF(TableauEntraineurs[[#This Row],[Catégorie\nEquipe]]<>\"\",VLOOKUP(TableauEntraineurs[[#This Row],[Equipe n°]],TableauEquipes[#All],5,FALSE)&\" \"&VLOOKUP(TableauEntraineurs[[#This Row],[Equipe n°]],TableauEquipes[#All],6,FALSE),\"\")","v":""}]
[null,{"$f":"IF(TableauEntraineurs[[#This Row],[Equipe n°]]<>\"\",VLOOKUP(TableauEntraineurs[[#This Row],[Equipe n°]],TableauEquipes[[Equipe n°]:[Catégorie]],2,FALSE),\"\")","v":""},{"$f":"IF(TableauEntraineurs[[#This Row],[Catégorie\nEquipe]]<>\"\",VLOOKUP(TableauEntraineurs[[#This Row],[Equipe n°]],TableauEquipes[#All],5,FALSE)&\" \"&VLOOKUP(TableauEntraineurs[[#This Row],[Equipe n°]],TableauEquipes[#All],6,FALSE),\"\")","v":""}]
[null,{"$f":"IF(TableauEntraineurs[[#This Row],[Equipe n°]]<>\"\",VLOOKUP(TableauEntraineurs[[#This Row],[Equipe n°]],TableauEquipes[[Equipe n°]:[Catégorie]],2,FALSE),\"\")","v":""},{"$f":"IF(TableauEntraineurs[[#This Row],[Catégorie\nEquipe]]<>\"\",VLOOKUP(TableauEntraineurs[[#This Row],[Equipe n°]],TableauEquipes[#All],5,FALSE)&\" \"&VLOOKUP(TableauEntraineurs[[#This Row],[Equipe n°]],TableauEquipes[#All],6,FALSE),\"\")","v":""}]
[null,{"$f":"IF(TableauEntraineurs[[#This Row],[Equipe n°]]<>\"\",VLOOKUP(TableauEntraineurs[[#This Row],[Equipe n°]],TableauEquipes[[Equipe n°]:[Catégorie]],2,FALSE),\"\")","v":""},{"$f":"IF(TableauEntraineurs[[#This Row],[Catégorie\nEquipe]]<>\"\",VLOOKUP(TableauEntraineurs[[#This Row],[Equipe n°]],TableauEquipes[#All],5,FALSE)&\" \"&VLOOKUP(TableauEntraineurs[[#This Row],[Equipe n°]],TableauEquipes[#All],6,FALSE),\"\")","v":""}]
[null,{"$f":"IF(TableauEntraineurs[[#This Row],[Equipe n°]]<>\"\",VLOOKUP(TableauEntraineurs[[#This Row],[Equipe n°]],TableauEquipes[[Equipe n°]:[Catégorie]],2,FALSE),\"\")","v":""},{"$f":"IF(TableauEntraineurs[[#This Row],[Catégorie\nEquipe]]<>\"\",VLOOKUP(TableauEntraineurs[[#This Row],[Equipe n°]],TableauEquipes[#All],5,FALSE)&\" \"&VLOOKUP(TableauEntraineurs[[#This Row],[Equipe n°]],TableauEquipes[#All],6,FALSE),\"\")","v":""}]
[null,{"$f":"IF(TableauEntraineurs[[#This Row],[Equipe n°]]<>\"\",VLOOKUP(TableauEntraineurs[[#This Row],[Equipe n°]],TableauEquipes[[Equipe n°]:[Catégorie]],2,FALSE),\"\")","v":""},{"$f":"IF(TableauEntraineurs[[#This Row],[Catégorie\nEquipe]]<>\"\",VLOOKUP(TableauEntraineurs[[#This Row],[Equipe n°]],TableauEquipes[#All],5,FALSE)&\" \"&VLOOKUP(TableauEntraineurs[[#This Row],[Equipe n°]],TableauEquipes[#All],6,FALSE),\"\")","v":""}]
[null,{"$f":"IF(TableauEntraineurs[[#This Row],[Equipe n°]]<>\"\",VLOOKUP(TableauEntraineurs[[#This Row],[Equipe n°]],TableauEquipes[[Equipe n°]:[Catégorie]],2,FALSE),\"\")","v":""},{"$f":"IF(TableauEntraineurs[[#This Row],[Catégorie\nEquipe]]<>\"\",VLOOKUP(TableauEntraineurs[[#This Row],[Equipe n°]],TableauEquipes[#All],5,FALSE)&\" \"&VLOOKUP(TableauEntraineurs[[#This Row],[Equipe n°]],TableauEquipes[#All],6,FALSE),\"\")","v":""}]
[null,{"$f":"IF(TableauEntraineurs[[#This Row],[Equipe n°]]<>\"\",VLOOKUP(TableauEntraineurs[[#This Row],[Equipe n°]],TableauEquipes[[Equipe n°]:[Catégorie]],2,FALSE),\"\")","v":""},{"$f":"IF(TableauEntraineurs[[#This Row],[Catégorie\nEquipe]]<>\"\",VLOOKUP(TableauEntraineurs[[#This Row],[Equipe n°]],TableauEquipes[#All],5,FALSE)&\" \"&VLOOKUP(TableauEntraineurs[[#This Row],[Equipe n°]],TableauEquipes[#All],6,FALSE),\"\")","v":""}]
[null,{"$f":"IF(TableauEntraineurs[[#This Row],[Equipe n°]]<>\"\",VLOOKUP(TableauEntraineurs[[#This Row],[Equipe n°]],TableauEquipes[[Equipe n°]:[Catégorie]],2,FALSE),\"\")","v":""},{"$f":"IF(TableauEntraineurs[[#This Row],[Catégorie\nEquipe]]<>\"\",VLOOKUP(TableauEntraineurs[[#This Row],[Equipe n°]],TableauEquipes[#All],5,FALSE)&\" \"&VLOOKUP(TableauEntraineurs[[#This Row],[Equipe n°]],TableauEquipes[#All],6,FALSE),\"\")","v":""}]
[null,{"$f":"IF(TableauEntraineurs[[#This Row],[Equipe n°]]<>\"\",VLOOKUP(TableauEntraineurs[[#This Row],[Equipe n°]],TableauEquipes[[Equipe n°]:[Catégorie]],2,FALSE),\"\")","v":""},{"$f":"IF(TableauEntraineurs[[#This Row],[Catégorie\nEquipe]]<>\"\",VLOOKUP(TableauEntraineurs[[#This Row],[Equipe n°]],TableauEquipes[#All],5,FALSE)&\" \"&VLOOKUP(TableauEntraineurs[[#This Row],[Equipe n°]],TableauEquipes[#All],6,FALSE),\"\")","v":""}]
[null,{"$f":"IF(TableauEntraineurs[[#This Row],[Equipe n°]]<>\"\",VLOOKUP(TableauEntraineurs[[#This Row],[Equipe n°]],TableauEquipes[[Equipe n°]:[Catégorie]],2,FALSE),\"\")","v":""},{"$f":"IF(TableauEntraineurs[[#This Row],[Catégorie\nEquipe]]<>\"\",VLOOKUP(TableauEntraineurs[[#This Row],[Equipe n°]],TableauEquipes[#All],5,FALSE)&\" \"&VLOOKUP(TableauEntraineurs[[#This Row],[Equipe n°]],TableauEquipes[#All],6,FALSE),\"\")","v":""}]
[null,{"$f":"IF(TableauEntraineurs[[#This Row],[Equipe n°]]<>\"\",VLOOKUP(TableauEntraineurs[[#This Row],[Equipe n°]],TableauEquipes[[Equipe n°]:[Catégorie]],2,FALSE),\"\")","v":""},{"$f":"IF(TableauEntraineurs[[#This Row],[Catégorie\nEquipe]]<>\"\",VLOOKUP(TableauEntraineurs[[#This Row],[Equipe n°]],TableauEquipes[#All],5,FALSE)&\" \"&VLOOKUP(TableauEntraineurs[[#This Row],[Equipe n°]],TableauEquipes[#All],6,FALSE),\"\")","v":""}]
[null,{"$f":"IF(TableauEntraineurs[[#This Row],[Equipe n°]]<>\"\",VLOOKUP(TableauEntraineurs[[#This Row],[Equipe n°]],TableauEquipes[[Equipe n°]:[Catégorie]],2,FALSE),\"\")","v":""},{"$f":"IF(TableauEntraineurs[[#This Row],[Catégorie\nEquipe]]<>\"\",VLOOKUP(TableauEntraineurs[[#This Row],[Equipe n°]],TableauEquipes[#All],5,FALSE)&\" \"&VLOOKUP(TableauEntraineurs[[#This Row],[Equipe n°]],TableauEquipes[#All],6,FALSE),\"\")","v":""}]
[null,{"$f":"IF(TableauEntraineurs[[#This Row],[Equipe n°]]<>\"\",VLOOKUP(TableauEntraineurs[[#This Row],[Equipe n°]],TableauEquipes[[Equipe n°]:[Catégorie]],2,FALSE),\"\")","v":""},{"$f":"IF(TableauEntraineurs[[#This Row],[Catégorie\nEquipe]]<>\"\",VLOOKUP(TableauEntraineurs[[#This Row],[Equipe n°]],TableauEquipes[#All],5,FALSE)&\" \"&VLOOKUP(TableauEntraineurs[[#This Row],[Equipe n°]],TableauEquipes[#All],6,FALSE),\"\")","v":""}]
[null,{"$f":"IF(TableauEntraineurs[[#This Row],[Equipe n°]]<>\"\",VLOOKUP(TableauEntraineurs[[#This Row],[Equipe n°]],TableauEquipes[[Equipe n°]:[Catégorie]],2,FALSE),\"\")","v":""},{"$f":"IF(TableauEntraineurs[[#This Row],[Catégorie\nEquipe]]<>\"\",VLOOKUP(TableauEntraineurs[[#This Row],[Equipe n°]],TableauEquipes[#All],5,FALSE)&\" \"&VLOOKUP(TableauEntraineurs[[#This Row],[Equipe n°]],TableauEquipes[#All],6,FALSE),\"\")","v":""}]
[null,{"$f":"IF(TableauEntraineurs[[#This Row],[Equipe n°]]<>\"\",VLOOKUP(TableauEntraineurs[[#This Row],[Equipe n°]],TableauEquipes[[Equipe n°]:[Catégorie]],2,FALSE),\"\")","v":""},{"$f":"IF(TableauEntraineurs[[#This Row],[Catégorie\nEquipe]]<>\"\",VLOOKUP(TableauEntraineurs[[#This Row],[Equipe n°]],TableauEquipes[#All],5,FALSE)&\" \"&VLOOKUP(TableauEntraineurs[[#This Row],[Equipe n°]],TableauEquipes[#All],6,FALSE),\"\")","v":""}]
[null,{"$f":"IF(TableauEntraineurs[[#This Row],[Equipe n°]]<>\"\",VLOOKUP(TableauEntraineurs[[#This Row],[Equipe n°]],TableauEquipes[[Equipe n°]:[Catégorie]],2,FALSE),\"\")","v":""},{"$f":"IF(TableauEntraineurs[[#This Row],[Catégorie\nEquipe]]<>\"\",VLOOKUP(TableauEntraineurs[[#This Row],[Equipe n°]],TableauEquipes[#All],5,FALSE)&\" \"&VLOOKUP(TableauEntraineurs[[#This Row],[Equipe n°]],TableauEquipes[#All],6,FALSE),\"\")","v":""}]
[null,{"$f":"IF(TableauEntraineurs[[#This Row],[Equipe n°]]<>\"\",VLOOKUP(TableauEntraineurs[[#This Row],[Equipe n°]],TableauEquipes[[Equipe n°]:[Catégorie]],2,FALSE),\"\")","v":""},{"$f":"IF(TableauEntraineurs[[#This Row],[Catégorie\nEquipe]]<>\"\",VLOOKUP(TableauEntraineurs[[#This Row],[Equipe n°]],TableauEquipes[#All],5,FALSE)&\" \"&VLOOKUP(TableauEntraineurs[[#This Row],[Equipe n°]],TableauEquipes[#All],6,FALSE),\"\")","v":""}]
[null,{"$f":"IF(TableauEntraineurs[[#This Row],[Equipe n°]]<>\"\",VLOOKUP(TableauEntraineurs[[#This Row],[Equipe n°]],TableauEquipes[[Equipe n°]:[Catégorie]],2,FALSE),\"\")","v":""},{"$f":"IF(TableauEntraineurs[[#This Row],[Catégorie\nEquipe]]<>\"\",VLOOKUP(TableauEntraineurs[[#This Row],[Equipe n°]],TableauEquipes[#All],5,FALSE)&\" \"&VLOOKUP(TableauEntraineurs[[#This Row],[Equipe n°]],TableauEquipes[#All],6,FALSE),\"\")","v":""}]
[null,{"$f":"IF(TableauEntraineurs[[#This Row],[Equipe n°]]<>\"\",VLOOKUP(TableauEntraineurs[[#This Row],[Equipe n°]],TableauEquipes[[Equipe n°]:[Catégorie]],2,FALSE),\"\")","v":""},{"$f":"IF(TableauEntraineurs[[#This Row],[Catégorie\nEquipe]]<>\"\",VLOOKUP(TableauEntraineurs[[#This Row],[Equipe n°]],TableauEquipes[#All],5,FALSE)&\" \"&VLOOKUP(TableauEntraineurs[[#This Row],[Equipe n°]],TableauEquipes[#All],6,FALSE),\"\")","v":""}]
[null,{"$f":"IF(TableauEntraineurs[[#This Row],[Equipe n°]]<>\"\",VLOOKUP(TableauEntraineurs[[#This Row],[Equipe n°]],TableauEquipes[[Equipe n°]:[Catégorie]],2,FALSE),\"\")","v":""},{"$f":"IF(TableauEntraineurs[[#This Row],[Catégorie\nEquipe]]<>\"\",VLOOKUP(TableauEntraineurs[[#This Row],[Equipe n°]],TableauEquipes[#All],5,FALSE)&\" \"&VLOOKUP(TableauEntraineurs[[#This Row],[Equipe n°]],TableauEquipes[#All],6,FALSE),\"\")","v":""}]
[null,{"$f":"IF(TableauEntraineurs[[#This Row],[Equipe n°]]<>\"\",VLOOKUP(TableauEntraineurs[[#This Row],[Equipe n°]],TableauEquipes[[Equipe n°]:[Catégorie]],2,FALSE),\"\")","v":""},{"$f":"IF(TableauEntraineurs[[#This Row],[Catégorie\nEquipe]]<>\"\",VLOOKUP(TableauEntraineurs[[#This Row],[Equipe n°]],TableauEquipes[#All],5,FALSE)&\" \"&VLOOKUP(TableauEntraineurs[[#This Row],[Equipe n°]],TableauEquipes[#All],6,FALSE),\"\")","v":""}]
[null,{"$f":"IF(TableauEntraineurs[[#This Row],[Equipe n°]]<>\"\",VLOOKUP(TableauEntraineurs[[#This Row],[Equipe n°]],TableauEquipes[[Equipe n°]:[Catégorie]],2,FALSE),\"\")","v":""},{"$f":"IF(TableauEntraineurs[[#This Row],[Catégorie\nEquipe]]<>\"\",VLOOKUP(TableauEntraineurs[[#This Row],[Equipe n°]],TableauEquipes[#All],5,FALSE)&\" \"&VLOOKUP(TableauEntraineurs[[#This Row],[Equipe n°]],TableauEquipes[#All],6,FALSE),\"\")","v":""}]
[null,{"$f":"IF(TableauEntraineurs[[#This Row],[Equipe n°]]<>\"\",VLOOKUP(TableauEntraineurs[[#This Row],[Equipe n°]],TableauEquipes[[Equipe n°]:[Catégorie]],2,FALSE),\"\")","v":""},{"$f":"IF(TableauEntraineurs[[#This Row],[Catégorie\nEquipe]]<>\"\",VLOOKUP(TableauEntraineurs[[#This Row],[Equipe n°]],TableauEquipes[#All],5,FALSE)&\" \"&VLOOKUP(TableauEntraineurs[[#This Row],[Equipe n°]],TableauEquipes[#All],6,FALSE),\"\")","v":""}]
[null,{"$f":"IF(TableauEntraineurs[[#This Row],[Equipe n°]]<>\"\",VLOOKUP(TableauEntraineurs[[#This Row],[Equipe n°]],TableauEquipes[[Equipe n°]:[Catégorie]],2,FALSE),\"\")","v":""},{"$f":"IF(TableauEntraineurs[[#This Row],[Catégorie\nEquipe]]<>\"\",VLOOKUP(TableauEntraineurs[[#This Row],[Equipe n°]],TableauEquipes[#All],5,FALSE)&\" \"&VLOOKUP(TableauEntraineurs[[#This Row],[Equipe n°]],TableauEquipes[#All],6,FALSE),\"\")","v":""}]
[null,{"$f":"IF(TableauEntraineurs[[#This Row],[Equipe n°]]<>\"\",VLOOKUP(TableauEntraineurs[[#This Row],[Equipe n°]],TableauEquipes[[Equipe n°]:[Catégorie]],2,FALSE),\"\")","v":""},{"$f":"IF(TableauEntraineurs[[#This Row],[Catégorie\nEquipe]]<>\"\",VLOOKUP(TableauEntraineurs[[#This Row],[Equipe n°]],TableauEquipes[#All],5,FALSE)&\" \"&VLOOKUP(TableauEntraineurs[[#This Row],[Equipe n°]],TableauEquipes[#All],6,FALSE),\"\")","v":""}]
[null,{"$f":"IF(TableauEntraineurs[[#This Row],[Equipe n°]]<>\"\",VLOOKUP(TableauEntraineurs[[#This Row],[Equipe n°]],TableauEquipes[[Equipe n°]:[Catégorie]],2,FALSE),\"\")","v":""},{"$f":"IF(TableauEntraineurs[[#This Row],[Catégorie\nEquipe]]<>\"\",VLOOKUP(TableauEntraineurs[[#This Row],[Equipe n°]],TableauEquipes[#All],5,FALSE)&\" \"&VLOOKUP(TableauEntraineurs[[#This Row],[Equipe n°]],TableauEquipes[#All],6,FALSE),\"\")","v":""}]
[null,{"$f":"IF(TableauEntraineurs[[#This Row],[Equipe n°]]<>\"\",VLOOKUP(TableauEntraineurs[[#This Row],[Equipe n°]],TableauEquipes[[Equipe n°]:[Catégorie]],2,FALSE),\"\")","v":""},{"$f":"IF(TableauEntraineurs[[#This Row],[Catégorie\nEquipe]]<>\"\",VLOOKUP(TableauEntraineurs[[#This Row],[Equipe n°]],TableauEquipes[#All],5,FALSE)&\" \"&VLOOKUP(TableauEntraineurs[[#This Row],[Equipe n°]],TableauEquipes[#All],6,FALSE),\"\")","v":""}]
[null,{"$f":"IF(TableauEntraineurs[[#This Row],[Equipe n°]]<>\"\",VLOOKUP(TableauEntraineurs[[#This Row],[Equipe n°]],TableauEquipes[[Equipe n°]:[Catégorie]],2,FALSE),\"\")","v":""},{"$f":"IF(TableauEntraineurs[[#This Row],[Catégorie\nEquipe]]<>\"\",VLOOKUP(TableauEntraineurs[[#This Row],[Equipe n°]],TableauEquipes[#All],5,FALSE)&\" \"&VLOOKUP(TableauEntraineurs[[#This Row],[Equipe n°]],TableauEquipes[#All],6,FALSE),\"\")","v":""}]
[null,{"$f":"IF(TableauEntraineurs[[#This Row],[Equipe n°]]<>\"\",VLOOKUP(TableauEntraineurs[[#This Row],[Equipe n°]],TableauEquipes[[Equipe n°]:[Catégorie]],2,FALSE),\"\")","v":""},{"$f":"IF(TableauEntraineurs[[#This Row],[Catégorie\nEquipe]]<>\"\",VLOOKUP(TableauEntraineurs[[#This Row],[Equipe n°]],TableauEquipes[#All],5,FALSE)&\" \"&VLOOKUP(TableauEntraineurs[[#This Row],[Equipe n°]],TableauEquipes[#All],6,FALSE),\"\")","v":""}]

{"sheet":"ListeClubsRaRT","index":1,"n_rows":70,"n_cols":12,"rows_kept":70,"cut":false,"hidden":true,"merged":[]}
["Club","Alpha","No Club","Groupement","Nom, prénom du responsable","Adresse e-mail du responsable","No téléphone","Fonction","date mise à jour","qui","inscription recue","commentaires"]
["Team ANF Littoral","ANF",7000,"NA","Juvet Stéphane","juvet.stephane@football.ch","079 347 46 26","RA + RT","2021-06-22","SJU"]
["Team ANF Montagne","ANF",7000,"NA","Juvet Stéphane","Juvet.stephane@football.ch","079 347 46 26","RA + RT","2021-06-22","SJU"]
["ASI Audax - Friul","ASI",7028,"Team ASI Audax - NE Xamax FCS","Vauthier Damien","damien.vauthier@gmail.com","076 593 64 24","RA + RT","2021-06-22","SJU"]
["FC Deportivo","Dep",7010,"NA","Carlos Villena","carlosvillena@msn.com","078 644 08 76","RA","2021-07-07","SJU"]
["FC Deportivo","Dep",7010,"NA","Patrick Massimango","patrick.massimango@gmail.com","079 106 60 70","RT","2021-07-07","SJU"]
["FC Espagnol NE","Esp",7031,"NA","Vincenzo Scarcella","trinity-sport@bluewin.ch","079 240 2 318","RT","2021-07-07","SJU"]
["FC Espagnol NE","Esp",7031,"NA","Melissa Tarantino","fc.espagnol.neuchatel@gmail.com","078 641 37 90","RA","2021-07-07","SJU"]
["FC Etoile-Sporting","Eto",7006,"Grpm Etoile-Sporting","Matthey Philippe","philippe.matthey@ne.ch","078 733.43.13","RA + RT","2021-07-07","SJU"]
["FC Etoile-Sporting","Eto",7006,"Grpm Etoile-Sporting","Prétot Gérard","etoile-sporting@bluewin.ch","032 913.20.05","RA + RT","2021-07-07","SJU"]
["FC Fleurier","Fle",7019,"Grpm VDT (Fleurier)","Floquet Luc","floquet.luc@laposte.net","0033/608101207","RT ABCFF19","2021-07-07","SJU"]
["FC Fleurier","Fle",7019,"Grpm VDT (Fleurier)","Badertscher Jérémy","je.badertscher@gmail.com",null,"RT CDEFGGG15","2021-07-07","SJU"]
["FC Fleurier","Fle",7019,"Grpm VDT (Fleurier)","Brissat Raphael","raphael.brissat@rpn.ch",null,"RA","2021-07-07","SJU"]
["FC Fleurier","Fle",7019,"Grpm VDT (Fleurier)","Thiebaud Francis","francis.thiebaud100@gmail.com",null,"Coach JS","2021-07-07","SJU"]
["FC Floria","Flo",7007,"Team La Charrière (Floria)","Testaz Alexandre","a.testaz@bluewin.ch",null,"RA","2021-07-07","SJU"]
["FC Floria","Flo",7007,"Team La Charrière (Floria)","Sahiti Nexhat","nexhat@swissprojecthome.ch",null,"RT","2021-07-07","SJU"]
["FC Hauterive","Hau",7023,"NA","Maspoli Jérôme","jaymaspoli@hotmail.com","079 647 22 23","RA","2021-07-07","SJU"]
["FC Hauterive","Hau",7023,"NA","Schornoz Stéphane","stschornoz@gmail.com","079 385 04 62","RT","2021-07-07","SJU"]
["FC Helvetia NE","Hel",7046,"NA","-","-","-","-","2021-07-07","SJU"]
["FC Kosova NE","Kos",7060,"NA","-","-","-","-","2021-07-07","SJU"]
["FC Le Landeron","Lan",7024,"Groupement des 2 Thielles","Marc Hertzeisen","hertzi13@hotmail.com","079 796 65 99","RA / Resp juniors","2021-07-07","SJU"]
["FC Le Locle","Le L",7025,"Grpm Ville du Locle","Hostettler Nicolas","n.hostettler@live.fr","079 382 51 79","RT","2021-07-07","SJU"]
["FC Le Locle","Le L",7025,"Grpm Ville du Locle","Matthey Michel","micmatthey@bluewin.ch","078 767.78.45","RA","2021-07-07","SJU"]
["FC Lignières","Lig",7044,"Team 3L","Stoppa Maryline","MarylineStoppa@hotmail.com","078 912 41 83","RA FC Lignières","2021-07-07","SJU"]
["FC Lignières","Lig",7044,"Team 3L","Stauffer Alexandre","alexstauffer@windowslive.com","079 307 26 92","RT FC Lignières","2021-07-07","SJU"]
["FC Lignières","Lig",7044,"Team 3L","Frésard Létitia","letitia.fresard@bluewin.ch","079 285 74 63","Admin Groupement Team 3L","2021-07-07","SJU"]
["FC Lignières","Lig",7044,"Team 3L","Administration","admin@team-3l.ch",null,null,"2021-07-07","SJU"]
["FC Lusitanos","Lus",7058,"NA","Freddy Da Mota Marques","freddy@fm-polissage.ch","079 637 79 04","RA + RT","2021-07-07","SJU"]
["FC Marin-Sports","Mar",7043,"Team Bas-Lac (Marin)","Clemente Tiago","tiago@fcmarin.ch","078 608 02 56","Responsable juniors","2021-07-07","SJU"]
["FC Marin-Sports","Mar",7043,"Team Bas-Lac (Marin)","Vuilliomenet Christophe","info@fcmarin.ch","076 441.71.57","Responsable juniors","2021-07-07","SJU"]
["FC Marin-Sports","Mar",7043,"Team Bas-Lac (Marin)","Mendy Vincent","vmendy@yahoo.com","+41 (79) 5449273","Responsable juniors","2021-07-07","SJU"]
["FC Mont-Soleil","Mon",7837,"NA","-","-","-","Responsable juniors","2021-07-07","SJU"]
["FC Môtiers","Môt",7027,"NA","-","-","-","Responsable juniors","2021-07-07","SJU"]
["FC La Neuveville-Lamboing)","Neu",7044,"Team 3L","Morand Dominic","casamodo@bluewin.ch","079 961 86 91","Responsable juniors","2021-07-07","SJU"]
["FC La Neuveville-Lamboing)","Neu",7044,"Team 3L","Lecomte Ludovic","lecomte.ludovic@bluewin.ch","078 604 24 28","Responsable juniors","2021-07-07","SJU"]
["FC La Neuveville-Lamboing)","Neu",7044,"Team 3L","Rohrer Patrick","freemann@bluewin.ch","079 689 07 68","Responsable juniors","2021-07-07","SJU"]
["FC La Neuveville-Lamboing)","Neu",7044,"Team 3L","Frésard Létitia","letitia.fresard@bluewin.ch","079 285 74 63","Responsable juniors","2021-07-07","SJU"]
["FC La Neuveville-Lamboing)","Neu",7044,"Team 3L","Administration","admin@team-3l.ch",null,"Responsable juniors","2021-07-07","SJU"]
["Neuchâtel City FC","Neu",7068,"Team ASI Audax / Neuchâtel / Xamax FCS",null,null,null,"Responsable juniors","2021-07-07","SJU"]
["Neuchâtel City FC","Neu",7068,"Team ASI Audax / Neuchâtel / Xamax FCS","Moser Maurus","-","?","Responsable juniors","2021-07-07","SJU"]
["FC Le Parc","Par",7008,"Grpm Le Parc","Feijo Manuel","m.feijo@bluewin.ch","079 610.96.84","Responsable juniors","2021-07-07","SJU"]
["FC Peseux-Comète","Pes",7033,"FCCPC","Pierre Gunthard","pierre.gunthard@net2000.ch","079 216 94 67","Responsable juniors","2021-07-07","SJU"]
["FC Les Ponts-de-Martel","Pon",7050,"FC Les Ponts-de-Martel","Roulet Martial","m.roulet@zmoos.com","079 459.30.23","Responsable juniors","2021-07-07","SJU"]
["FC La Sagne","Sag",7038,"FC La Sagne","Hugi Hans","hans.hugi@net2000.ch","079 218.04.15","Responsable juniors","2021-07-07","SJU"]
["FC Saint-Blaise","Saint-B",7035,"Team Bas-Lac (Saint-Blaise)","Kurth Anthony","a.kurth@e-gestion.ch","079 451 04 02","Responsable juniors","2021-07-07","SJU"]
["FC Saint-Imier","Saint-I",7836,"Team Vallon (St-Imier)","Bovy Raphael","raphael.bovy@teamvallon.ch","079 278 13 93","Responsable juniors","2021-07-07","SJU"]
["FC Saint-Imier","Saint-I",7836,"Team Vallon (St-Imier)","Bovy Valérie","val.bovy@yahoo.fr","079 486 91 81","Responsable juniors","2021-07-07","SJU"]
["FC Saint-Sulpice","Saint-S",7037,"NA","-","-","-","Responsable juniors","2021-07-07","SJU"]
["FC Sonvillier","Son",7840,"Team Vallon (Sonvillier)","Bovy Raphael","teamerguel@fcsaintimier.ch","079 278 13 93","Responsable juniors","2021-07-07","SJU"]
["FC Sonvillier","Son",7840,"Team Vallon (Sonvillier)","Bovy Valérie","val.bovy@yahoo.fr","079 486 91 81","Responsable juniors","2021-07-07","SJU"]
["Sporting Club Cressier","Spo",7064,"NA","-","-","-","Responsable juniors","2021-07-07","SJU"]
["FC Superga","Sup",7009,"NA","-","-","-","Responsable juniors","2021-07-07","SJU"]
["FC Ticino","Tic",7026,"Grpm Ville du Locle","Candido Bruno","bc.ticino@gmail.com","078 719 72 08","Responsable juniors","2021-07-07","SJU"]
["FC Unine","Unin",7066,"NA","Christopher Clark","fc.unine@unine.ch","078 714 70 90","Responsable juniors","2021-07-07","SJU"]
["FC United Milvignes","Unit",7075,"NA","Mickael Oberhansli","fcunitedmilvignes@gmail.com","0765192595","Responsable juniors","2021-07-07","SJU"]
["FC United Milvignes","Unit",7075,"NA","Poirot David","dp.fcunitedmilvignes@gmail.com","0796530198","Responsable juniors","2021-07-07","SJU"]
["FC Valangin","Vala",7040,"NA","-","-","-","Responsable juniors","2021-07-07","SJU"]
["AS Vallée","Vall",7839,"AS Vallée","De Sousa Fabio","fabidsous@gmail.com",null,"Responsable juniors","2021-07-07","SJU"]
["FC Val-de-Ruz","Val-r",7069,"FC Val-de-Ruz","Alexandre Pagès","a.pages@bluewin.ch","079 306 96 52","Responsable juniors","2021-07-07","SJU"]
["FC Val-de-Ruz","Val-r",7069,"FC Val-de-Ruz","Robert Loriol","robert.loriol@bluewin.ch","079 665 10 19","Responsable juniors","2021-07-07","SJU"]
["FC AP Val-de-Travers","Val-t",7057,"NA","-","-","-","Responsable juniors","2021-07-07","SJU"]
["US Villeret","Vil",7835,"NA","Kämpf Bryan","bryan498@bluewin.ch","079 777 34 05","Responsable juniors","2021-07-07","SJU"]
["US Villeret","Vil",7835,"NA","Zumwald Alexandre","alexandre.zumwald@gmail.com","079 229 06 82","Responsable juniors","2021-07-07","SJU"]
["Neuchâtel Xamax FCS","Xam",7067,"Team ASI Audax - NE Xamax FCS",null,null,null,"Responsable juniors","2021-07-07","SJU"]
["Neuchâtel Xamax FCS (CCLJ)","Xam",7702,"NA",null,null,null,"Responsable juniors","2021-07-07","SJU"]
["FC Exemple","zzz",7777,"Team ANF (Exemple)","Martin Michel","Martin.Michel@exemple.ch","000 000.00.00","Responsable juniors","2021-07-07","SJU"]
["FC Exemple","zzz",7777,"Team ANF (Exemple)","Robert Jean","Jean.Robert@exemple.ch","111 111.11.11","Responsable juniors","2021-07-07","SJU"]
["FC Exemple2","zzz",7778,"Team ANF (Exemple2)","Perret Jules","Jean.Robert@exemple.ch","111 111.11.11","Responsable juniors","2021-07-07","SJU"]
["FC Exemple","zzz",7777,"Team ANF (Exemple)","Robert Jean","Jean.Robert@exemple.ch","111 111.11.11","Responsable juniors","2021-07-07","SJU"]
["FC Exemple2","zzz",7778,"Team ANF (Exemple2)","Perret Jules","Jean.Robert@exemple.ch","111 111.11.11","Responsable juniors","2021-07-07","SJU"]

{"sheet":"Listes","index":2,"n_rows":43,"n_cols":19,"rows_kept":43,"cut":false,"hidden":true,"merged":[]}
["Catégories","années","Réponse oui/non","Equipes","Degré souhaité","Type Entraineur","clubs","n°","groupement",null,"No Club",7835,null,{"$f":"NbClubRef","v":""},{"$f":"clubRef","v":0},null,"Tours","nom fichier",{"$f":"IF(clubRef=\"\",\"InscriptionEquipes2016_2017_\"&version,NbClubRef&\"_\"&clubRef&\"_\"&année_ref-1&\"-\"&année_ref&\"_\"&version)","v":"InscriptionEquipes2016_2017_v_1.0"}]
["Juniors A garçons",{"$f":"année_ref-20&\" - \"&année_ref-19&\" - \"&année_ref-18","v":"2003 - 2004 - 2005"},"oui","I","CCJL","Entraineur principal","Mon","FC Mont-Soleil",7837,"NA",null,null,null,null,null,null,"Tour automne","lieu stockage:","C:\\Users\\Gremar\\Documents"]
["Juniors B garçons",{"$f":"année_ref-17&\" - \"&année_ref-16","v":"2006 - 2007"},"non","II","1er degré / promotion","Entraineur adjoint","Mar","FC Marin-Sports",7043,"Team Bas-Lac (Marin)","Kämpf Bryan",null,null,null,null,null,"Tour printemps"]
["Juniors C garçons",{"$f":"année_ref-15&\" - \"&année_ref-14","v":"2008 - 2009"},null,"III","2ème degré",null,"ANF","Team ANF Littoral",7000,"NA","Zumwald Alexandre",null,null,null,null,null,null,"commentaire MAG; des lignes de la macro accessible en Alt-F11 permettent de sauver sous ce nom"]
["Juniors D garçons",{"$f":"année_ref-13&\" - \"&année_ref-12","v":"2010 - 2011"},null,"IV","3ème degré",null,"ANF","Team ANF Montagne",7000,"NA"]
["Juniors E garçons",{"$f":"année_ref-11&\" - \"&année_ref-10","v":"2012 - 2013"},null,"V","FE",null,"ASI","ASI Audax - Friul",7028,"Team ASI Audax - NE Xamax FCS"]
["Junior(e)s F",{"$f":"année_ref-9&\" - \"&année_ref-8","v":"2014 - 2015"},null,null,null,null,"Dep","FC Deportivo",7010,"NA"]
["Junior(e)s G",{"$f":"année_ref-7&\" - \"&année_ref-6","v":"2016 - 2017"},null,null,null,null,"Esp","FC Espagnol NE",7031,"NA"]
["Juniores FF19 filles",{"$f":"année_ref-19&\" - \"&année_ref-16","v":"2004 - 2007"},null,null,null,null,"Eto","FC Etoile-Sporting",7006,"Grpm Etoile-Sporting"]
["Juniores FF15 filles",{"$f":"année_ref-15&\" - \"&année_ref-13","v":"2008 - 2010"},null,null,null,null,"Fle","FC Fleurier",7019,"Grpm VDT (Fleurier)"]
["Juniores FF12 filles",{"$f":"année_ref-12&\" - \"&année_ref-9","v":"2011 - 2014"},null,null,null,null,"Flo","FC Floria",7007,"Team La Charrière (Floria)"]
["FE-14",{"$f":"\"nés en \"&année_ref-14","v":"nés en 2009"},null,null,null,null,"Hau","FC Hauterive",7023,"NA"]
["FE-13",{"$f":"\"nés en \"&année_ref-13","v":"nés en 2010"},null,null,null,null,"Hel","FC Helvetia NE",7046,"NA"]
["FE-12",{"$f":"\"nés en \"&année_ref-12","v":"nés en 2011"},null,null,null,null,"Kos","FC Kosova NE",7060,"NA"]
["FE-11",{"$f":"\"nés en \"&année_ref-11","v":"nés en 2012"},null,null,null,null,"Lan","FC Le Landeron",7024,"Groupement des 2 Thielles"]
[null,null,null,null,null,null,"Le L","FC Le Locle",7025,"Grpm Ville du Locle"]
[null,null,null,null,null,null,"Lig","FC Lignières",7044,"Team 3L"]
[null,null,null,null,null,null,"Lus","FC Lusitanos",7058,"NA"]
[null,null,null,null,null,null,"Môt","FC Môtiers",7027,"NA"]
[null,null,null,null,null,null,"Neu","FC La Neuveville-Lamboing)",7044,"Team 3L"]
[null,null,null,null,"Responsable juniors",null,"Neu","Neuchâtel City FC",7068,"Team ASI Audax / Neuchâtel / Xamax FCS"]
["saison",2022,{"$f":"B22+1","v":2023},null,null,null,"Par","FC Le Parc",7008,"Grpm Le Parc"]
[null,null,null,null,null,null,"Pes","FC Peseux-Comète",7033,"FCCPC"]
[null,null,null,null,null,null,"Pon","FC Les Ponts-de-Martel",7050,"FC Les Ponts-de-Martel"]
[null,null,null,null,null,null,"Sag","FC La Sagne",7038,"FC La Sagne"]
[null,null,null,null,null,null,"Saint-B","FC Saint-Blaise",7035,"Team Bas-Lac (Saint-Blaise)"]
[null,null,null,null,null,null,"Saint-I","FC Saint-Imier",7836,"Team Vallon (St-Imier)"]
[null,null,null,null,null,null,"Saint-S","FC Saint-Sulpice",7037,"NA"]
[null,null,null,null,null,null,"Son","FC Sonvillier",7840,"Team Vallon (Sonvillier)"]
[null,null,null,null,null,null,"Spo","Sporting Club Cressier",7064,"NA"]
[null,null,null,null,null,null,"Sup","FC Superga",7009,"NA"]
[null,null,null,null,null,null,"Tic","FC Ticino",7026,"Grpm Ville du Locle"]
[null,null,null,null,null,null,"Unin","FC Unine",7066,"NA"]
[null,null,null,null,null,null,"Unit","FC United Milvignes",7075,"NA"]
[null,null,null,null,null,null,"Vala","FC Valangin",7040,"NA"]
[null,null,null,null,null,null,"Vall","AS Vallée",7839,"AS Vallée"]
[null,null,null,null,null,null,"Val-r","FC Val-de-Ruz",7069,"FC Val-de-Ruz"]
[null,null,null,null,null,null,"Val-t","FC AP Val-de-Travers",7057,"NA"]
[null,null,null,null,null,null,"Vil","US Villeret",7835,"NA"]
[null,null,null,null,null,null,"Xam","Neuchâtel Xamax FCS",7067,"Team ASI Audax - NE Xamax FCS"]
[null,null,null,null,null,null,"Xam","Neuchâtel Xamax FCS (CCLJ)",7702,"NA"]
[null,null,null,null,null,null,"zzz","FC Exemple",7777,"Team ANF (Exemple)"]
[null,null,null,null,null,null,"zzz","FC Exemple2",7778,"Team ANF (Exemple2)"]